fUSD/lending_fUSD_20250420
["ID","MTS","AMOUNT","RATE_DAILY","PERIOD"]
[358450323,1745161848376,-500.0,0.00054794,120]
[358450324,1745161848385,-22.08203341,0.00054794,120]
[358450325,1745161848397,-477.91796659,0.00054794,120]
[358450326,1745161848406,-500.0,0.00054794,120]
[358450327,1745161848415,-45.13203341,0.00054794,120]
[358450328,1745161848426,-390.43581403,0.00054794,120]
[358450329,1745161848437,-64.43215256,0.00054794,120]
[358450330,1745161848446,-500.0,0.00054794,120]
[358450331,1745161848455,-500.0,0.00054794,120]
[358450332,1745161848464,-526.47943693,0.00054794,30]
[358450333,1745161848473,-500.0,0.00054794,120]
[358450334,1745161848483,-124.29295867,0.00054794,120]
[358450335,1745161848494,-270.89131941,0.00054794,120]
[358450336,1745161848505,-138.54352167,0.00054794,120]
[358450337,1745161848513,-500.0,0.00054794,120]
[358450338,1745161848522,-100.27218108,0.00054794,120]
[358450339,1745161848533,-399.72781892,0.00054794,120]
[358450340,1745161848542,-520.68597025,0.00054794,120]
[358450341,1745161848551,-500.0,0.00054794,120]
[358450342,1745161848561,-500.0,0.00054794,120]
[358450343,1745161848570,-582.8,0.00054794,120]
[358450344,1745161848579,-500.0,0.00054794,120]
[358450345,1745161848588,-1198.71,0.00054794,8]
[358450346,1745161848597,-500.0,0.00054794,120]
[358450347,1745161848606,-500.0,0.00054794,120]
[358450348,1745161848615,-500.0,0.00054794,120]
[358450349,1745161848624,-305.79694688,0.00054794,120]
[358450350,1745161848635,-194.20305312,0.00054794,120]
[358450351,1745161848644,-500.0,0.00054794,120]
[358450352,1745161848654,-500.0,0.00054794,120]
[358450353,1745161848664,-500.0,0.00054794,120]
[358450354,1745161848673,-500.0,0.00054794,120]
[358450355,1745161848682,-504.02092652,0.00054794,120]
[358450356,1745161848691,-500.0,0.00054794,120]
[358450357,1745161848700,-500.0,0.00054794,120]
[358450358,1745161848709,-159.48840566,0.00054794,120]
[358450359,1745161848721,-340.51159434,0.00054794,120]
[358450360,1745161848729,-500.0,0.00054794,120]
[358450361,1745161848738,-500.0,0.00054794,120]
[358450362,1745161848748,-500.0,0.00054794,120]
[358450363,1745161848757,-406.33499489,0.00054794,120]
[358450364,1745161848768,-93.66500511,0.00054794,120]
[358450365,1745161848777,-500.0,0.00054794,120]
[358450366,1745161848786,-471.16690569,0.00054794,120]
[358450367,1745162704517,450.0,0.00017,2]
[358450368,1745162705610,500.0,0.00019,2]
[358450369,1745162708575,1867917.22562788,0.0002,2]
[358450370,1745162708604,106281.92636148,0.0002,2]
[358450371,1745162708635,1013723.70340219,0.0002,2]
[358450372,1745162728805,849.03421608,0.00011,2]
[358450376,1745162927892,5459.767771,0.00015,5]
[358450396,1745163032247,-411.64114999,0.0003121,2]
[358450397,1745163032260,-88.35884901,0.0003121,2]
[358450398,1745163032270,-151.0,0.00034643,2]
[358450399,1745163032279,-151.0,0.00034643,2]
[358450400,1745163032290,-230.2686911,0.000399,2]
[358450401,1745163032299,-16.21416503,0.00039999,5]
[358450402,1745163032310,-350.0,0.00039999,5]
[358450403,1745163032321,-33.78583497,0.00039999,5]
[358450404,1745163032330,-339.17912446,0.0004,7]
[358450405,1745163032342,-2686.01008024,0.0004,7]
[358450406,1745163032359,-2729.8716691,0.0004,7]
[358450407,1745163032370,-805.851417,0.0004,7]
[358450408,1745163032384,-2430.0877092,0.0004,7]
[358450409,1745163032396,-234.25687706,0.00043162,2]
[358450410,1745163032405,-230.26869108,0.00043262,2]
[358450411,1745163032415,-256.66,0.00043362,2]
[358450412,1745163032425,-256.67,0.00044968,2]
[358450413,1745163032435,-256.67,0.00046574,2]
[358450414,1745163032445,-170.28647191,0.00047741,30]
[358450427,1745163032633,-1496.47990283,0.00047741,30]
[358450540,1745163038632,-234.25687706,0.0004757,2]
[358450541,1745163038641,-345.19362526,0.00047741,30]
[358450542,1745163038651,-27861.6014184,0.00047741,30]
[358450543,1745163038660,-772.16266959,0.00047741,120]
[358450544,1745163038669,-234.17,0.00047741,2]
[358450545,1745163038678,-808.53227146,0.0004799,2]
[358450546,1745163038687,-150.0,0.00048,2]
[358450547,1745163038696,-1818.13,0.00048,2]
[358450548,1745163038705,-153.29,0.00048,120]
[358450549,1745163038715,-367.56,0.00048,42]
[358450550,1745163038724,-367.56,0.00048,42]
[358450551,1745163038733,-367.56,0.00048,42]
[358450552,1745163038743,-367.56,0.00048,42]
[358450553,1745163038752,-367.56,0.00048,42]
[358450554,1745163038762,-367.56,0.00048,42]
[358450555,1745163038771,-367.56,0.00048,42]
[358450556,1745163038781,-367.56,0.00048,42]
[358450557,1745163038790,-367.56,0.00048,42]
[358450558,1745163038799,-367.56,0.00048,42]
[358450559,1745163038808,-367.56,0.00048,42]
[358450560,1745163038818,-367.56,0.00048,42]
[358450561,1745163038827,-256.67,0.0004818,2]
[358450562,1745163038837,-226.03,0.0004818,2]
[358450563,1745163038846,-500.0,0.00048835,2]
[358450564,1745163038855,-500.0,0.0005,120]
[358450565,1745163038864,-279.76,0.000504,7]
[358450566,1745163038873,-495.51,0.0005064,2]
[358450567,1745163038883,-500.0,0.00051,120]
[358450568,1745163038892,-580.0,0.00052,120]
[358450569,1745163038902,-150.0,0.00052077,7]
[358450570,1745163038913,-1000.0,0.00052188,120]
[358450571,1745163038923,-2131.39,0.00052376,30]
[358450572,1745163038933,-163.33,0.00052414,2]
[358450573,1745163038948,-2392.3,0.00052429,2]
[358450574,1745163038958,-645.0,0.000525,30]
[358450575,1745163038968,-9279.35,0.00052584,2]
[358450577,1745163038977,-495.51,0.00052903,2]
[358450579,1745163038987,-384.0,0.00053,120]
[358450581,1745163038997,-464.83604952,0.00053,120]
[358450583,1745163039007,-908.86,0.0005328,2]
[358450585,1745163039017,-200.05,0.00053512,120]
[358450587,1745163039027,-367.56,0.000536,54]
[358450589,1745163039036,-367.56,0.000536,54]
[358450591,1745163039045,-367.56,0.000536,54]
[358450593,1745163039055,-367.56,0.000536,54]
[358450595,1745163039063,-367.56,0.000536,54]
[358450597,1745163039072,-367.56,0.000536,54]
[358450599,1745163039082,-367.56,0.000536,54]
[358450601,1745163039092,-367.56,0.000536,54]
[358450603,1745163039101,-367.56,0.000536,54]
[358450605,1745163039110,-367.56,0.000536,54]
[358450606,1745163039119,-367.56,0.000536,54]
[358450608,1745163039128,-367.56,0.000536,54]
[358450610,1745163039137,-367.56,0.000536,54]
[358450612,1745163039146,-367.56,0.000536,54]
[358450614,1745163039155,-367.56,0.000536,54]
[358450616,1745163039164,-367.56,0.000536,54]
[358450618,1745163039173,-367.56,0.000536,54]
[358450620,1745163039182,-367.56,0.000536,54]
[358450622,1745163039191,-367.56,0.000536,54]
[358450624,1745163039199,-367.56,0.000536,54]
[358450626,1745163039208,-367.56,0.000536,54]
[358450628,1745163039218,-367.56,0.000536,54]
[358450630,1745163039227,-367.56,0.000536,54]
[358450632,1745163039236,-367.56,0.000536,54]
[358450634,1745163039245,-384.0,0.00053699,120]
[358450636,1745163039255,-1000.0,0.00054,12]
[358450638,1745163039264,-471.69536567,0.00054,7]
[358450640,1745163039273,-618.0,0.00054,4]
[358450641,1745163039282,-300.0,0.00054,120]
[358450644,1745163039292,-2000.0,0.00054,120]
[358450645,1745163039302,-2000.0,0.000545,2]
[358450647,1745163039311,-600.0,0.000545,2]
[358450649,1745163039320,-250.0,0.00054683,2]
[358450651,1745163039330,-220.268,0.00054694,103]
[358450653,1745163039339,-200.0,0.000547,99]
[358450655,1745163039348,-200.0,0.000547,99]
[358450657,1745163039357,-200.0,0.000547,99]
[358450660,1745163039367,-1002.25291531,0.000547,2]
[358450661,1745163039376,-630.9955862,0.00054787,2]
[358450664,1745163039386,-748.7713514,0.00054787,2]
[358450665,1745163039396,-751.63262254,0.00054787,2]
[358450667,1745163039405,-2308.2996959,0.00054787,2]
[358450669,1745163039414,-1000.0,0.00054793,120]
[358450671,1745163039424,-500.0,0.00054793,120]
[358450673,1745163039433,-500.0,0.00054793,120]
[358450675,1745163039442,-500.0,0.00054793,120]
[358450677,1745163039452,-500.0,0.00054793,120]
[358450679,1745163039463,-457.69475399,0.00054793,120]
[358450680,1745163039472,-150.0,0.00054793,120]
[358450682,1745163039482,-150.0,0.00054793,120]
[358450684,1745163039491,-150.0,0.00054793,120]
[358450686,1745163039501,-743.03763375,0.00054793,120]
[358450688,1745163039510,-150.0,0.00054793,120]
[358450689,1745163039519,-150.0,0.00054793,120]
[358450690,1745163039529,-150.0,0.00054793,120]
[358450691,1745163039538,-1652.82566053,0.00054793,120]
[358450692,1745163039547,-513.09705606,0.00054794,120]
[358450693,1745163039556,-500.0,0.00054794,2]
[358450694,1745163039566,-500.0,0.00054794,120]
[358450695,1745163039575,-500.0,0.00054794,120]
[358450696,1745163039585,-500.0,0.00054794,120]
[358450697,1745163039594,-500.0,0.00054794,120]
[358450698,1745163039603,-510.43285995,0.00054794,120]
[358450699,1745163039613,-500.0,0.00054794,120]
[358450700,1745163039622,-166.23479467,0.00054794,120]
[358450701,1745163039631,-500.0,0.00054794,120]
[358450702,1745163039640,-515.09717733,0.00054794,120]
[358450703,1745163039649,-500.0,0.00054794,120]
[358450704,1745163039659,-500.0,0.00054794,120]
[358450705,1745163039668,-232.58892202,0.00054794,120]
[358450706,1745163039677,-500.0,0.00054794,120]
[358450707,1745163039687,-500.0,0.00054794,120]
[358450708,1745163039696,-504.53590563,0.00054794,120]
[358450709,1745163039705,-500.0,0.00054794,120]
[358450710,1745163039719,-500.0,0.00054794,120]
[358450711,1745163039729,-500.0,0.00054794,120]
[358450712,1745163039738,-500.0,0.00054794,120]
[358450713,1745163039747,-300.0,0.00054794,120]
[358450714,1745163039756,-500.0,0.00054794,120]
[358450715,1745163039765,-500.0,0.00054794,120]
[358450716,1745163039775,-500.0,0.00054794,120]
[358450717,1745163039785,-500.0,0.00054794,120]
[358450718,1745163039794,-506.58267263,0.00054794,120]
[358450719,1745163039804,-500.0,0.00054794,2]
[358450720,1745163039813,-500.0,0.00054794,2]
[358450721,1745163039822,-739.07,0.00054794,2]
[358450722,1745163039831,-500.0,0.00054794,120]
[358450723,1745163039841,-500.0,0.00054794,120]
[358450724,1745163039851,-500.0,0.00054794,2]
[358450725,1745163039860,-500.0,0.00054794,120]
[358450726,1745163039870,-551.24,0.00054794,120]
[358450727,1745163039880,-500.0,0.00054794,120]
[358450728,1745163039890,-506.37363328,0.00054794,2]
[358450729,1745163039899,-500.0,0.00054794,120]
[358450730,1745163039908,-500.0,0.00054794,120]
[358450731,1745163039918,-500.0,0.00054794,120]
[358450732,1745163039927,-500.0,0.00054794,120]
[358450733,1745163039937,-500.0,0.00054794,120]
[358450734,1745163039948,-500.0,0.00054794,120]
[358450735,1745163039959,-500.0,0.00054794,120]
[358450736,1745163039968,-500.0,0.00054794,120]
[358450737,1745163039978,-500.0,0.00054794,120]
[358450738,1745163039988,-500.0,0.00054794,120]
[358450739,1745163039997,-500.0,0.00054794,120]
[358450740,1745163040007,-500.0,0.00054794,120]
[358450741,1745163040016,-500.0,0.00054794,120]
[358450742,1745163040027,-500.0,0.00054794,120]
[358450743,1745163040037,-500.0,0.00054794,120]
[358450744,1745163040047,-500.0,0.00054794,120]
[358450745,1745163040056,-486.1469857,0.00054794,120]
[358450746,1745163040065,-500.0,0.00054794,120]
[358450748,1745163040075,-500.0,0.00054794,120]
[358450750,1745163040084,-500.0,0.00054794,120]
[358450751,1745163040093,-500.0,0.00054794,120]
[358450752,1745163040102,-500.0,0.00054794,120]
[358450753,1745163040111,-500.0,0.00054794,120]
[358450754,1745163040121,-500.0,0.00054794,120]
[358450755,1745163040130,-500.0,0.00054794,120]
[358450756,1745163040139,-500.0,0.00054794,120]
[358450757,1745163040149,-629.90339339,0.00054794,120]
[358450758,1745163040158,-500.0,0.00054794,120]
[358450759,1745163040167,-577.10558375,0.00054794,120]
[358450760,1745163040319,-500.0,0.00054794,120]
[358450761,1745163040329,-500.0,0.00054794,120]
[358450762,1745163040338,-562.4227257,0.00054794,120]
[358450763,1745163040347,-500.0,0.00054794,120]
[358450764,1745163040357,-500.0,0.00054794,120]
[358450765,1745163040366,-500.0,0.00054794,120]
[358450766,1745163040375,-500.0,0.00054794,120]
[358450767,1745163040385,-500.0,0.00054794,120]
[358450768,1745163040395,-500.0,0.00054794,120]
[358450769,1745163040406,-500.0,0.00054794,120]
[358450770,1745163040416,-566.96519459,0.00054794,120]
[358450771,1745163040441,-500.0,0.00054794,120]
[358450772,1745163040451,-500.0,0.00054794,120]
[358450773,1745163040460,-500.0,0.00054794,120]
[358450774,1745163040470,-550.26545113,0.00054794,120]
[358450775,1745163040479,-1788.764056,0.00054794,120]
[358450776,1745163040488,-500.0,0.00054794,120]
[358450777,1745163040498,-500.0,0.00054794,120]
[358450778,1745163040507,-500.0,0.00054794,120]
[358450779,1745163040516,-500.0,0.00054794,120]
[358450780,1745163040526,-558.64128294,0.00054794,120]
[358450781,1745163040535,-500.0,0.00054794,30]
[358450782,1745163040544,-500.0,0.00054794,120]
[358450783,1745163040553,-316.036698,0.00054794,120]
[358450784,1745163040563,-500.0,0.00054794,120]
[358450785,1745163040572,-627.74,0.00054794,120]
[358450786,1745163040581,-500.0,0.00054794,120]
[358450787,1745163040591,-500.0,0.00054794,120]
[358450788,1745163040600,-500.0,0.00054794,120]
[358450789,1745163040610,-500.0,0.00054794,120]
[358450790,1745163040620,-500.0,0.00054794,120]
[358450791,1745163040630,-500.0,0.00054794,120]
[358450792,1745163040639,-500.0,0.00054794,120]
[358450793,1745163040648,-560.75619329,0.00054794,120]
[358450794,1745163040657,-500.0,0.00054794,120]
[358450795,1745163040666,-500.0,0.00054794,120]
[358450796,1745163040675,-500.0,0.00054794,120]
[358450797,1745163040684,-500.0,0.00054794,120]
[358450798,1745163040693,-500.0,0.00054794,120]
[358450799,1745163040703,-500.0,0.00054794,120]
[358450800,1745163040713,-500.0,0.00054794,120]
[358450801,1745163040722,-500.0,0.00054794,120]
[358450802,1745163040731,-500.0,0.00054794,120]
[358450803,1745163040741,-1325.19,0.00054794,120]
[358450804,1745163040750,-500.0,0.00054794,120]
[358450805,1745163040761,-551.1302692,0.00054794,120]
[358450806,1745163040771,-500.0,0.00054794,120]
[358450807,1745163040780,-500.0,0.00054794,120]
[358450808,1745163040790,-500.0,0.00054794,120]
[358450809,1745163040803,-539.56831786,0.00054794,120]
[358450810,1745163040812,-500.0,0.00054794,120]
[358450811,1745163040823,-500.0,0.00054794,120]
[358450812,1745163040834,-500.0,0.00054794,120]
[358450813,1745163040845,-500.0,0.00054794,120]
[358450814,1745163040855,-500.0,0.00054794,120]
[358450815,1745163040865,-500.0,0.00054794,120]
[358450816,1745163040875,-500.0,0.00054794,120]
[358450817,1745163040884,-500.0,0.00054794,120]
[358450818,1745163040894,-500.0,0.00054794,120]
[358450819,1745163040905,-553.94624239,0.00054794,120]
[358450820,1745163040915,-500.0,0.00054794,120]
[358450821,1745163040926,-500.0,0.00054794,120]
[358450822,1745163040936,-526.78,0.00054794,120]
[358450823,1745163040947,-500.0,0.00054794,120]
[358450825,1745163040956,-640.93,0.00054794,120]
[358450827,1745163040965,-500.0,0.00054794,120]
[358450829,1745163040975,-500.0,0.00054794,120]
[358450830,1745163040985,-500.2,0.00054794,120]
[358450831,1745163040997,-500.0,0.00054794,120]
[358450832,1745163041006,-507.76754129,0.00054794,120]
[358450833,1745163041016,-500.0,0.00054794,120]
[358450834,1745163041029,-500.0,0.00054794,120]
[358450835,1745163041039,-500.0,0.00054794,120]
[358450836,1745163041048,-500.0,0.00054794,120]
[358450837,1745163041057,-500.0,0.00054794,120]
[358450838,1745163041067,-533.91,0.00054794,120]
[358450840,1745163041076,-500.0,0.00054794,120]
[358450841,1745163041085,-335.51,0.00054794,120]
[358450842,1745163041095,-500.0,0.00054794,120]
[358450843,1745163041104,-500.0,0.00054794,120]
[358450844,1745163041116,-500.0,0.00054794,120]
[358450845,1745163041126,-300.0,0.00054794,120]
[358450846,1745163041137,-500.0,0.00054794,120]
[358450847,1745163041147,-253.87276898,0.00054794,120]
[358450848,1745163041156,-500.0,0.00054794,120]
[358450849,1745163041166,-500.0,0.00054794,120]
[358450850,1745163041175,-500.0,0.00054794,120]
[358450851,1745163041184,-500.0,0.00054794,120]
[358450852,1745163041194,-547.04,0.00054794,120]
[358450853,1745163041203,-500.0,0.00054794,120]
[358450854,1745163041214,-500.0,0.00054794,120]
[358450855,1745163041225,-500.0,0.00054794,120]
[358450856,1745163041236,-500.0,0.00054794,120]
[358450857,1745163041246,-500.0,0.00054794,120]
[358450858,1745163041255,-500.0,0.00054794,120]
[358450859,1745163041265,-500.0,0.00054794,120]
[358450860,1745163041274,-500.0,0.00054794,120]
[358450861,1745163041283,-500.0,0.00054794,120]
[358450862,1745163041293,-500.0,0.00054794,120]
[358450863,1745163041302,-500.0,0.00054794,120]
[358450864,1745163041311,-500.0,0.00054794,120]
[358450865,1745163041321,-500.0,0.00054794,120]
[358450866,1745163041330,-500.0,0.00054794,120]
[358450867,1745163041339,-500.0,0.00054794,120]
[358450868,1745163041348,-500.0,0.00054794,120]
[358450869,1745163041357,-500.0,0.00054794,120]
[358450870,1745163041367,-539.26622662,0.00054794,120]
[358450871,1745163041376,-500.0,0.00054794,120]
[358450872,1745163041385,-500.0,0.00054794,10]
[358450873,1745163041395,-500.0,0.00054794,120]
[358450874,1745163041404,-500.0,0.00054794,120]
[358450875,1745163041413,-500.0,0.00054794,120]
[358450876,1745163041422,-500.0,0.00054794,120]
[358450877,1745163041431,-500.0,0.00054794,120]
[358450878,1745163041441,-500.0,0.00054794,120]
[358450879,1745163041451,-500.0,0.00054794,120]
[358450880,1745163041460,-500.0,0.00054794,120]
[358450881,1745163041470,-500.0,0.00054794,120]
[358450882,1745163041480,-500.0,0.00054794,120]
[358450883,1745163041490,-1122.79,0.00054794,120]
[358450884,1745163041499,-500.0,0.00054794,120]
[358450885,1745163041509,-500.0,0.00054794,120]
[358450886,1745163041519,-500.0,0.00054794,20]
[358450887,1745163041528,-500.0,0.00054794,120]
[358450888,1745163041538,-500.0,0.00054794,120]
[358450889,1745163041548,-500.0,0.00054794,120]
[358450890,1745163041557,-500.0,0.00054794,120]
[358450891,1745163041567,-500.0,0.00054794,120]
[358450892,1745163041576,-500.0,0.00054794,120]
[358450893,1745163041586,-500.0,0.00054794,120]
[358450894,1745163041595,-500.0,0.00054794,120]
[358450895,1745163041604,-500.0,0.00054794,120]
[358450896,1745163041614,-500.0,0.00054794,120]
[358450897,1745163041624,-466.41,0.00054794,120]
[358450898,1745163041634,-608.33,0.00054794,120]
[358450899,1745163041643,-500.0,0.00054794,120]
[358450900,1745163041652,-505.02,0.00054794,120]
[358450901,1745163041661,-500.0,0.00054794,120]
[358450902,1745163041671,-500.0,0.00054794,120]
[358450903,1745163041680,-500.0,0.00054794,120]
[358450904,1745163041689,-200.0,0.00054794,120]
[358450905,1745163041698,-207.4,0.00054794,120]
[358450906,1745163041708,-292.71,0.00054794,120]
[358450907,1745163041718,-215.0738,0.00054794,120]
[358450908,1745163041727,-223.0315306,0.00054794,120]
[358450909,1745163041736,-231.28369723,0.00054794,120]
[358450910,1745163041745,-500.0,0.00054794,120]
[358450911,1745163041755,-500.0,0.00054794,120]
[358450912,1745163041764,-500.0,0.00054794,120]
[358450913,1745163041773,-239.84119403,0.00054794,120]
[358450914,1745163041782,-248.71531821,0.00054794,120]
[358450915,1745163041792,-257.91778498,0.00054794,120]
[358450916,1745163041801,-267.46074303,0.00054794,120]
[358450917,1745163041810,-500.0,0.00054794,120]
[358450918,1745163041820,-1435.93,0.00054794,120]
[358450919,1745163041829,-277.35679052,0.00054794,120]
[358450920,1745163041839,-305.09685543,0.00054794,120]
[358450921,1745163041848,-500.0,0.00054794,120]
[358450922,1745163041858,-555.42096487,0.00054794,120]
[358450923,1745163041867,-500.0,0.00054794,120]
[358450924,1745163041876,-500.0,0.00054794,120]
[358450925,1745163041886,-500.0,0.00054794,120]
[358450926,1745163041895,-500.0,0.00054794,120]
[358450927,1745163041904,-1224.26,0.00054794,120]
[358450928,1745163041914,-500.0,0.00054794,120]
[358450929,1745163041923,-500.0,0.00054794,120]
[358450930,1745163041932,-1863.27,0.00054794,12]
[358450931,1745163041942,-500.0,0.00054794,120]
[358450932,1745163041955,-504.80815503,0.00054794,120]
[358450933,1745163041964,-500.0,0.00054794,120]
[358450934,1745163041974,-500.0,0.00054794,30]
[358450935,1745163041983,-751.3,0.00054794,120]
[358450936,1745163041993,-500.0,0.00054794,120]
[358450937,1745163042002,-500.0,0.00054794,120]
[358450938,1745163042011,-500.0,0.00054794,120]
[358450939,1745163042023,-502.4,0.00054794,120]
[358450940,1745163042032,-500.0,0.00054794,120]
[358450941,1745163042041,-500.0,0.00054794,120]
[358450942,1745163042050,-500.0,0.00054794,120]
[358450943,1745163042059,-500.0,0.00054794,120]
[358450944,1745163042068,-500.0,0.00054794,120]
[358450945,1745163042078,-624.29,0.00054794,120]
[358450946,1745163042087,-500.0,0.00054794,120]
[358450947,1745163042097,-500.0,0.00054794,120]
[358450948,1745163042107,-1148.76,0.00054794,8]
[358450949,1745163042116,-500.0,0.00054794,120]
[358450950,1745163042125,-558.52,0.00054794,120]
[358450951,1745163042134,-500.0,0.00054794,120]
[358450952,1745163042144,-500.0,0.00054794,120]
[358450953,1745163042153,-500.0,0.00054794,120]
[358450954,1745163042162,-500.0,0.00054794,120]
[358450955,1745163042171,-500.0,0.00054794,120]
[358450956,1745163042181,-500.0,0.00054794,120]
[358450957,1745163042191,-500.0,0.00054794,120]
[358450958,1745163042200,-500.0,0.00054794,120]
[358450959,1745163042210,-500.0,0.00054794,120]
[358450960,1745163042219,-500.0,0.00054794,120]
[358450961,1745163042229,-500.0,0.00054794,120]
[358450962,1745163042238,-500.0,0.00054794,120]
[358450963,1745163042247,-564.72,0.00054794,120]
[358450964,1745163042256,-500.0,0.00054794,120]
[358450965,1745163042266,-500.0,0.00054794,120]
[358450966,1745163042276,-500.0,0.00054794,120]
[358450967,1745163042285,-500.0,0.00054794,120]
[358450968,1745163042295,-500.0,0.00054794,120]
[358450969,1745163042304,-500.0,0.00054794,120]
[358450970,1745163042313,-294.25,0.00054794,120]
[358450971,1745163042323,-500.0,0.00054794,120]
[358450972,1745163042332,-588.06630244,0.00054794,120]
[358450973,1745163042341,-500.0,0.00054794,120]
[358450974,1745163042351,-500.0,0.00054794,120]
[358450975,1745163042361,-555.88,0.00054794,120]
[358450976,1745163042370,-500.0,0.00054794,120]
[358450977,1745163042380,-500.0,0.00054794,120]
[358450978,1745163042389,-500.0,0.00054794,120]
[358450979,1745163042398,-500.0,0.00054794,120]
[358450980,1745163042407,-500.0,0.00054794,120]
[358450981,1745163042416,-500.0,0.00054794,120]
[358450982,1745163042426,-500.0,0.00054794,120]
[358450983,1745163042435,-500.0,0.00054794,120]
[358450984,1745163042445,-500.0,0.00054794,120]
[358450985,1745163042454,-374.73,0.00054794,120]
[358450986,1745163042464,-500.0,0.00054794,58]
[358450987,1745163042473,-500.0,0.00054794,120]
[358450988,1745163042482,-500.0,0.00054794,120]
[358450989,1745163042491,-500.0,0.00054794,120]
[358450990,1745163042501,-500.0,0.00054794,120]
[358450991,1745163042510,-500.0,0.00054794,120]
[358450992,1745163042519,-500.0,0.00054794,120]
[358450993,1745163042529,-500.0,0.00054794,120]
[358450994,1745163042539,-607.4,0.00054794,120]
[358450995,1745163042550,-164.64574267,0.00054794,2]
[358450996,1745163042560,-500.0,0.00054794,120]
[358450997,1745163042569,-500.0,0.00054794,120]
[358450998,1745163042578,-500.0,0.00054794,120]
[358450999,1745163042588,-500.0,0.00054794,120]
[358451000,1745163042597,-500.0,0.00054794,120]
[358451001,1745163042606,-500.0,0.00054794,120]
[358451002,1745163042615,-500.0,0.00054794,120]
[358451003,1745163042624,-500.0,0.00054794,120]
[358451004,1745163042634,-500.0,0.00054794,120]
[358451005,1745163042643,-860.08,0.00054794,120]
[358451006,1745163042652,-500.0,0.00054794,120]
[358451007,1745163042661,-500.0,0.00054794,120]
[358451008,1745163042670,-513.70926837,0.00054794,120]
[358451009,1745163042679,-500.0,0.00054794,120]
[358451010,1745163042688,-500.0,0.00054794,120]
[358451011,1745163042697,-646.21,0.00054794,120]
[358451012,1745163042706,-500.0,0.00054794,120]
[358451013,1745163042716,-500.0,0.00054794,120]
[358451014,1745163042725,-562.0,0.00054794,120]
[358451015,1745163042734,-500.0,0.00054794,120]
[358451016,1745163042858,-577.13060479,0.00054794,120]
[358451017,1745163042869,-500.0,0.00054794,120]
[358451018,1745163042879,-500.0,0.00054794,2]
[358451019,1745163042888,-500.0,0.00054794,120]
[358451020,1745163042897,-500.0,0.00054794,120]
[358451021,1745163042906,-500.0,0.00054794,120]
[358451022,1745163042915,-500.0,0.00054794,120]
[358451023,1745163042925,-500.0,0.00054794,120]
[358451024,1745163042935,-1088.28,0.00054794,120]
[358451025,1745163042946,-476.54,0.00054794,120]
[358451027,1745163042960,-498.03194,0.00054794,120]
[358451028,1745163042970,-12680.84,0.00054794,2]
[358451029,1745163042979,-500.0,0.00054794,120]
[358451030,1745163042989,-500.0,0.00054794,120]